fUSD/lending_fUSD_20250214
["ID","MTS","AMOUNT","RATE_DAILY","PERIOD"]
[353115835,1739566249249,-500.0,0.00013698,2]
[353115836,1739566249259,-500.0,0.00013698,2]
[353115837,1739566249269,-500.0,0.00013698,2]
[353115838,1739566249280,-500.0,0.00013698,2]
[353115839,1739566249290,-500.0,0.00013698,2]
[353115840,1739566249299,-501.21013689,0.00013698,2]
[353115841,1739566249308,-500.0,0.00013698,2]
[353115842,1739566249318,-1085.56,0.00013698,2]
[353115843,1739566249327,-500.0,0.00013698,2]
[353115844,1739566249337,-500.0,0.00013698,2]
[353115845,1739566249347,-500.0,0.00013698,2]
[353115846,1739566249357,-541.36,0.00013698,2]
[353115847,1739566249367,-500.0,0.00013698,2]
[353115848,1739566249377,-500.0,0.00013698,2]
[353115849,1739566249388,-667.26,0.00013698,2]
[353115850,1739566249398,-501.74765094,0.00013698,2]
[353115851,1739566249408,-500.0,0.00013698,2]
[353115852,1739566249419,-500.0,0.00013698,2]
[353115853,1739566249430,-673.36,0.00013698,2]
[353115854,1739566249441,-500.0,0.00013698,2]
[353115855,1739566249451,-500.0,0.00013698,2]
[353115856,1739566249462,-500.0,0.00013698,2]
[353115857,1739566249472,-1082.27,0.00013698,2]
[353115858,1739566249482,-501.70901193,0.00013698,2]
[353115859,1739566249492,-500.0,0.00013698,2]
[353115860,1739566249502,-500.0,0.00013698,2]
[353115861,1739566249512,-500.0,0.00013698,2]
[353115862,1739566249522,-500.0,0.00013698,2]
[353115863,1739566249536,-500.0,0.00013698,2]
[353115864,1739566249547,-500.0,0.00013698,2]
[353115865,1739566249557,-500.0,0.00013698,2]
[353115866,1739566249568,-533.8,0.00013698,2]
[353115867,1739566249578,-500.0,0.00013698,2]
[353115868,1739566249588,-500.0,0.00013698,2]
[353115869,1739566249598,-500.0,0.00013698,2]
[353115870,1739566249609,-500.0,0.00013698,2]
[353115871,1739566249619,-735.54,0.00013698,2]
[353115872,1739566249629,-500.0,0.00013698,2]
[353115873,1739566249639,-669.31,0.00013698,2]
[353115874,1739566249650,-500.0,0.00013698,2]
[353115875,1739566249660,-500.0,0.00013698,2]
[353115876,1739566249671,-500.0,0.00013698,2]
[353115877,1739566249682,-500.0,0.00013698,2]
[353115878,1739566249692,-500.0,0.00013698,2]
[353115879,1739566249702,-500.0,0.00013698,2]
[353115880,1739566249712,-503.16611841,0.00013698,2]
[353115881,1739566249723,-500.0,0.00013698,2]
[353115882,1739566249733,-500.0,0.00013698,2]
[353115883,1739566249743,-500.0,0.00013698,2]
[353115884,1739566249753,-500.0,0.00013698,2]
[353115885,1739566249763,-500.0,0.00013698,2]
[353115886,1739566249774,-883.81,0.00013698,2]
[353115887,1739566249788,-500.0,0.00013698,2]
[353115888,1739566249799,-500.0,0.00013698,2]
[353115889,1739566249811,-500.0,0.00013698,2]
[353115890,1739566249821,-500.0,0.00013698,2]
[353115891,1739566249832,-500.76522693,0.00013698,2]
[353115892,1739566249844,-500.0,0.00013698,2]
[353115893,1739566249854,-500.0,0.00013698,2]
[353115894,1739566249864,-500.0,0.00013698,2]
[353115895,1739566249874,-1107.54,0.00013698,2]
[353115896,1739566249885,-1293.24,0.00013698,2]
[353115897,1739566249895,-925.37,0.00013698,2]
[353115898,1739566249905,-757.13,0.00013698,2]
[353115899,1739566249917,-502.89920641,0.00013698,2]
[353115900,1739566249927,-500.0,0.00013698,2]
[353115901,1739566249937,-176.22818964,0.00013698,2]
[353115902,1739566249947,-500.0,0.00013698,2]
[353115903,1739566249958,-500.0,0.00013698,2]
[353115904,1739566249968,-500.0,0.00013698,2]
[353115905,1739566249978,-868.29,0.00013698,2]
[353115906,1739566249988,-500.0,0.00013698,2]
[353115907,1739566249998,-500.0,0.00013698,2]
[353115908,1739566250007,-500.0,0.00013698,2]
[353115909,1739566250018,-500.0,0.00013698,2]
[353115910,1739566250030,-500.0,0.00013698,2]
[353115911,1739566250040,-653.19,0.00013698,2]
[353115912,1739566250050,-500.0,0.00013698,2]
[353115913,1739566250060,-500.0,0.00013698,2]
[353115914,1739566250069,-500.0,0.00013698,2]
[353115915,1739566250078,-534.17,0.00013698,2]
[353115916,1739566250087,-461.00136803,0.00013698,2]
[353115917,1739566250097,-500.0,0.00013698,2]
[353115918,1739566250107,-500.0,0.00013698,2]
[353115919,1739566250116,-500.0,0.00013698,2]
[353115920,1739566250125,-500.0,0.00013698,2]
[353115921,1739566250135,-500.0,0.00013698,2]
[353115922,1739566250145,-500.0,0.00013698,2]
[353115923,1739566250155,-500.0,0.00013698,2]
[353115924,1739566250164,-500.0,0.00013698,2]
[353115925,1739566250174,-631.96,0.00013698,2]
[353115926,1739566250189,-500.0,0.00013698,2]
[353115927,1739566250204,-433.50000005,0.00013698,2]
[353115928,1739566250214,-501.46278206,0.00013698,2]
[353115929,1739566250223,-500.0,0.00013698,2]
[353115930,1739566250233,-500.0,0.00013698,2]
[353115931,1739566250243,-500.0,0.00013698,2]
[353115932,1739566250253,-500.0,0.00013698,2]
[353115933,1739566250265,-500.0,0.00013698,2]
[353115934,1739566250274,-500.0,0.00013698,2]
[353115935,1739566250287,-500.0,0.00013698,2]
[353115936,1739566250296,-818.28,0.00013698,2]
[353115937,1739566250306,-694.26,0.00013698,2]
[353115938,1739566250315,-500.0,0.00013698,2]
[353115939,1739566250324,-898.94,0.00013698,2]
[353115940,1739566250335,-500.0,0.00013698,2]
[353115941,1739566250344,-500.0,0.00013698,2]
[353115942,1739566250354,-897.15,0.00013698,2]
[353115943,1739566250364,-262.53707277,0.00013698,2]
[353115944,1739566250374,-501.38003324,0.00013698,2]
[353115945,1739566250383,-500.0,0.00013698,2]
[353115946,1739566250393,-500.0,0.00013698,2]
[353115947,1739566250402,-500.0,0.00013698,2]
[353115948,1739566250412,-500.0,0.00013698,2]
[353115949,1739566250421,-500.0,0.00013698,2]
[353115950,1739566250430,-500.0,0.00013698,2]
[353115951,1739566250440,-500.0,0.00013698,2]
[353115952,1739566250451,-621.48,0.00013698,2]
[353115953,1739566250462,-500.0,0.00013698,2]
[353115954,1739566250471,-500.0,0.00013698,2]
[353115955,1739566250480,-500.0,0.00013698,2]
[353115956,1739566250490,-500.0,0.00013698,2]
[353115957,1739566250499,-738.99,0.00013698,2]
[353115958,1739566250508,-500.0,0.00013698,2]
[353115959,1739566250517,-500.0,0.00013698,2]
[353115960,1739566250528,-500.0,0.00013698,2]
[353115961,1739566250537,-500.0,0.00013698,2]
[353115962,1739566250547,-551.59,0.00013698,2]
[353115963,1739566250556,-500.0,0.00013698,2]
[353115964,1739566250565,-500.0,0.00013698,2]
[353115965,1739566250575,-506.12747026,0.00013698,2]
[353115966,1739566250586,-500.0,0.00013698,2]
[353115967,1739566250596,-537.31,0.00013698,2]
[353115968,1739566250606,-500.0,0.00013698,2]
[353115969,1739566250615,-1738.29,0.00013698,2]
[353115970,1739566250625,-500.0,0.00013698,2]
[353115971,1739566250635,-500.0,0.00013698,2]
[353115972,1739566250644,-500.0,0.00013698,2]
[353115973,1739566250654,-500.0,0.00013698,2]
[353115974,1739566250663,-500.0,0.00013698,2]
[353115975,1739566250673,-601.69401331,0.00013698,2]
[353115976,1739566250682,-500.0,0.00013698,2]
[353115977,1739566250691,-500.0,0.00013698,2]
[353115978,1739566250700,-644.46,0.00013698,2]
[353115979,1739566250710,-500.0,0.00013698,2]
[353115980,1739566250720,-500.0,0.00013698,2]
[353115981,1739566250730,-500.0,0.00013698,2]
[353115982,1739566250740,-681.31,0.00013698,2]
[353115983,1739566250750,-500.0,0.00013698,2]
[353115984,1739566250759,-518.76,0.00013698,2]
[353115985,1739566250769,-500.0,0.00013698,2]
[353115986,1739566250779,-500.0,0.00013698,2]
[353115987,1739566250790,-500.0,0.00013698,2]
[353115988,1739566250799,-500.0,0.00013698,2]
[353115989,1739566250809,-500.0,0.00013698,2]
[353115990,1739566250819,-507.68817763,0.00013698,2]
[353115991,1739566250829,-500.0,0.00013698,2]
[353115992,1739566250839,-500.0,0.00013698,2]
[353115993,1739566250848,-500.0,0.00013698,2]
[353115994,1739566250858,-500.0,0.00013698,2]
[353115995,1739566250868,-500.0,0.00013698,2]
[353115996,1739566250877,-500.76067431,0.00013698,2]
[353115997,1739566251102,-238.179977,0.00013698,2]
[353115998,1739566251112,-500.0,0.00013698,2]
[353115999,1739566251122,-501.73659797,0.00013698,2]
[353116000,1739566251132,-500.0,0.00013698,2]
[353116001,1739566251141,-1083.31,0.00013698,2]
[353116002,1739566251151,-500.0,0.00013698,2]
[353116003,1739566251160,-500.0,0.00013698,2]
[353116004,1739566251170,-500.0,0.00013698,2]
[353116005,1739566251182,-500.0,0.00013698,2]
[353116006,1739566251193,-502.76,0.00013698,2]
[353116007,1739566251202,-500.0,0.00013698,2]
[353116008,1739566251212,-500.0,0.00013698,2]
[353116009,1739566251223,-508.01,0.00013698,2]
[353116010,1739566251232,-500.0,0.00013698,2]
[353116011,1739566251241,-500.0,0.00013698,2]
[353116012,1739566251251,-1023.77,0.00013698,2]
[353116013,1739566251263,-500.0,0.00013698,2]
[353116014,1739566251273,-500.0,0.00013698,2]
[353116015,1739566251285,-500.0,0.00013698,2]
[353116016,1739566251295,-500.0,0.00013698,2]
[353116017,1739566251304,-573.89,0.00013698,2]
[353116018,1739566251314,-500.0,0.00013698,2]
[353116019,1739566251324,-927.77,0.00013698,2]
[353116020,1739566251334,-500.0,0.00013698,2]
[353116021,1739566251345,-500.0,0.00013698,2]
[353116022,1739566251355,-500.0,0.00013698,2]
[353116023,1739566251365,-500.0,0.00013698,2]
[353116024,1739566251375,-503.5064233,0.00013698,2]
[353116025,1739566251384,-500.0,0.00013698,2]
[353116026,1739566251394,-500.0,0.00013698,2]
[353116027,1739566251404,-500.0,0.00013698,2]
[353116028,1739566251413,-616.63,0.00013698,2]
[353116029,1739566251423,-500.0,0.00013698,2]
[353116030,1739566251432,-500.0,0.00013698,2]
[353116031,1739566251442,-500.0,0.00013698,2]
[353116032,1739566251452,-500.0,0.00013698,2]
[353116033,1739566251461,-500.0,0.00013698,2]
[353116034,1739566251471,-500.0,0.00013698,2]
[353116035,1739566251480,-626.41,0.00013698,2]
[353116036,1739566251490,-1426.12,0.00013698,2]
[353116037,1739566251500,-621.67,0.00013698,2]
[353116038,1739566251510,-500.0,0.00013698,2]
[353116039,1739566251520,-1153.11,0.00013698,2]
[353116040,1739566251531,-621.67,0.00013698,2]
[353116041,1739566251540,-621.67,0.00013698,2]
[353116042,1739566251550,-621.67,0.00013698,2]
[353116043,1739566251560,-621.67,0.00013698,2]
[353116044,1739566251569,-500.0,0.00013698,2]
[353116045,1739566251578,-500.0,0.00013698,2]
[353116046,1739566251588,-500.0,0.00013698,2]
[353116047,1739566251597,-500.0,0.00013698,2]
[353116048,1739566251606,-500.0,0.00013698,2]
[353116049,1739566251616,-1100.39,0.00013698,2]
[353116050,1739566251625,-458.51582006,0.00013698,2]
[353116051,1739566251635,-500.0,0.00013698,2]
[353116052,1739566251644,-583.6,0.00013698,2]
[353116053,1739566251654,-675.34,0.00013698,2]
[353116054,1739566251664,-966.1,0.00013698,2]
[353116055,1739566251674,-500.0,0.00013698,2]
[353116056,1739566251684,-500.0,0.00013698,2]
[353116057,1739566251694,-500.0,0.00013698,2]
[353116058,1739566251704,-500.0,0.00013698,2]
[353116059,1739566251713,-500.0,0.00013698,2]
[353116060,1739566251723,-500.0,0.00013698,2]
[353116061,1739566251733,-502.24482305,0.00013698,2]
[353116062,1739566251743,-500.0,0.00013698,2]
[353116063,1739566251752,-500.0,0.00013698,2]
[353116064,1739566251762,-500.0,0.00013698,2]
[353116065,1739566251772,-500.0,0.00013698,2]
[353116066,1739566251783,-500.0,0.00013698,2]
[353116067,1739566251792,-500.0,0.00013698,2]
[353116068,1739566251802,-942.55,0.00013698,2]
[353116069,1739566251812,-500.0,0.00013698,2]
[353116070,1739566251822,-500.0,0.00013698,2]
[353116071,1739566251831,-1213.1,0.00013698,2]
[353116072,1739566251841,-500.0,0.00013698,2]
[353116073,1739566251851,-500.0,0.00013698,2]
[353116074,1739566251861,-500.0,0.00013698,2]
[353116075,1739566251872,-500.0,0.00013698,2]
[353116076,1739566251882,-500.0,0.00013698,2]
[353116077,1739566251892,-863.9,0.00013698,2]
[353116078,1739566251902,-500.0,0.00013698,2]
[353116079,1739566251911,-500.0,0.00013698,2]
[353116080,1739566251921,-500.0,0.00013698,2]
[353116081,1739566251931,-500.0,0.00013698,2]
[353116082,1739566251941,-500.0,0.00013698,2]
[353116083,1739566251952,-500.0,0.00013698,2]
[353116084,1739566251961,-500.0,0.00013698,2]
[353116085,1739566251971,-500.0,0.00013698,2]
[353116086,1739566251982,-500.0,0.00013698,2]
[353116087,1739566251992,-500.0,0.00013698,2]
[353116088,1739566252002,-500.0,0.00013698,2]
[353116089,1739566252012,-500.0,0.00013698,2]
[353116090,1739566252026,-853.01,0.00013698,2]
[353116091,1739566252042,-507.29,0.00013698,2]
[353116092,1739566252052,-500.0,0.00013698,2]
[353116093,1739566252062,-500.0,0.00013698,2]
[353116094,1739566252072,-850.74,0.00013698,2]
[353116095,1739566252082,-500.0,0.00013698,2]
[353116096,1739566252092,-674.85,0.00013698,2]
[353116097,1739566252102,-501.3196981,0.00013698,2]
[353116098,1739566252111,-1067.49,0.00013698,2]
[353116099,1739566252121,-500.0,0.00013698,2]
[353116100,1739566252132,-614.03,0.00013698,2]
[353116101,1739566252142,-953.81,0.00013698,2]
[353116102,1739566252152,-500.0,0.00013698,2]
[353116103,1739566252162,-500.0,0.00013698,2]
[353116104,1739566252172,-936.1,0.00013698,2]
[353116105,1739566252183,-500.0,0.00013698,2]
[353116106,1739566252193,-704.52,0.00013698,2]
[353116107,1739566252202,-524.35691591,0.00013698,2]
[353116108,1739566252211,-500.0,0.00013698,2]
[353116109,1739566252220,-500.0,0.00013698,2]
[353116110,1739566252230,-500.0,0.00013698,2]
[353116111,1739566252240,-1852.67,0.00013698,2]
[353116112,1739566252250,-500.0,0.00013698,2]
[353116113,1739566252260,-500.0,0.00013698,2]
[353116114,1739566252272,-500.0,0.00013698,2]
[353116115,1739566252282,-500.0,0.00013698,2]
[353116116,1739566252292,-500.0,0.00013698,2]
[353116117,1739566252302,-500.0,0.00013698,2]
[353116118,1739566252311,-511.89184812,0.00013698,2]
[353116119,1739566252321,-500.0,0.00013698,2]
[353116120,1739566252331,-500.0,0.00013698,2]
[353116121,1739566252340,-597.11,0.00013698,2]
[353116122,1739566252349,-2467.3,0.00013698,2]
[353116123,1739566252359,-500.0,0.00013698,2]
[353116124,1739566252369,-500.0,0.00013698,2]
[353116125,1739566252378,-2316.56,0.00013698,2]
[353116126,1739566252388,-500.0,0.00013698,2]
[353116127,1739566252397,-500.0,0.00013698,2]
[353116128,1739566252406,-500.0,0.00013698,2]
[353116129,1739566252416,-500.0,0.00013698,2]
[353116130,1739566252425,-500.0,0.00013698,2]
[353116131,1739566252435,-500.0,0.00013698,2]
[353116132,1739566252445,-842.17,0.00013698,2]
[353116133,1739566252455,-500.0,0.00013698,2]
[353116134,1739566252465,-500.0,0.00013698,2]
[353116135,1739566252475,-500.0,0.00013698,2]
[353116136,1739566252484,-500.0,0.00013698,2]
[353116137,1739566252494,-500.0,0.00013698,2]
[353116138,1739566252504,-500.0,0.00013698,2]
[353116139,1739566252514,-500.0,0.00013698,2]
[353116140,1739566252523,-2018.88,0.00013698,2]
[353116141,1739566252535,-1346.43,0.00013698,2]
[353116142,1739566252544,-931.73,0.00013698,2]
[353116143,1739566252554,-500.0,0.00013698,2]
[353116144,1739566252563,-500.0,0.00013698,2]
[353116145,1739566252572,-500.0,0.00013698,2]
[353116146,1739566252581,-500.0,0.00013698,2]
[353116147,1739566252591,-654.79,0.00013698,2]
[353116148,1739566252601,-592.75,0.00013698,2]
[353116149,1739566252610,-1316.77,0.00013698,2]
[353116150,1739566252620,-500.0,0.00013698,2]
[353116151,1739566252629,-500.0,0.00013698,2]
[353116152,1739566252638,-500.0,0.00013698,2]
[353116153,1739566252648,-500.0,0.00013698,2]
[353116154,1739566252658,-500.0,0.00013698,2]
[353116155,1739566252668,-500.0,0.00013698,2]
[353116156,1739566252678,-1311.38,0.00013698,2]
[353116157,1739566252687,-1927.46,0.00013698,2]
[353116158,1739566252697,-500.0,0.00013698,2]
[353116159,1739566252706,-500.0,0.00013698,2]
[353116160,1739566252716,-1226.1,0.00013698,2]
[353116161,1739566252725,-500.0,0.00013698,2]
[353116162,1739566252735,-1497.33,0.00013698,2]
[353116163,1739566252744,-500.0,0.00013698,2]
[353116164,1739566252755,-1983.45,0.00013698,2]
[353116165,1739566252764,-1529.01,0.00013698,2]
[353116166,1739566252776,-500.0,0.00013698,2]
[353116167,1739566252789,-2406.51,0.00013698,2]
[353116168,1739566252799,-500.0,0.00013698,2]
[353116169,1739566252809,-670.85,0.00013698,2]
[353116170,1739566252819,-503.07,0.00013698,2]
[353116171,1739566252829,-514.11,0.00013698,2]
[353116172,1739566252839,-500.0,0.00013698,2]
[353116173,1739566252849,-500.0,0.00013698,2]
[353116174,1739566252859,-500.0,0.00013698,2]
[353116175,1739566252869,-701.6,0.00013698,2]
[353116176,1739566252878,-1219.04,0.00013698,2]
[353116177,1739566252888,-2433.16,0.00013698,2]
[353116178,1739566252897,-1086.21,0.00013698,2]
[353116179,1739566252907,-500.0,0.00013698,2]
[353116180,1739566252917,-503.89630855,0.00013698,2]
[353116181,1739566252927,-1332.76,0.00013698,2]
[353116182,1739566252936,-500.0,0.00013698,2]
[353116183,1739566252946,-500.0,0.00013698,2]
[353116184,1739566252956,-500.0,0.00013698,2]
[353116185,1739566252966,-500.0,0.00013698,2]
[353116186,1739566252976,-500.0,0.00013698,2]
[353116187,1739566252986,-500.0,0.00013698,2]
[353116188,1739566252996,-1041.19,0.00013698,2]
[353116189,1739566253006,-500.0,0.00013698,2]
[353116190,1739566253016,-500.0,0.00013698,2]
[353116191,1739566253026,-500.0,0.00013698,2]
[353116192,1739566253037,-1357.25,0.00013698,2]
[353116193,1739566253046,-1158.9,0.00013698,2]
[353116194,1739566253056,-1814.98,0.00013698,2]
[353116195,1739566253066,-500.0,0.00013698,2]
[353116196,1739566253075,-3315.84,0.00013698,2]
[353116197,1739566253085,-500.0,0.00013698,2]
[353116198,1739566253094,-1092.63,0.00013698,2]
[353116199,1739566253104,-1307.26,0.00013698,2]
[353116200,1739566253114,-1239.09,0.00013698,2]
[353116201,1739566253123,-500.0,0.00013698,2]
[353116202,1739566253133,-500.0,0.00013698,2]
[353116203,1739566253143,-1164.5,0.00013698,2]
[353116204,1739566253152,-500.0,0.00013698,2]
[353116205,1739566253162,-1608.88,0.00013698,2]
[353116206,1739566253171,-500.0,0.00013698,2]
[353116207,1739566253181,-500.0,0.00013698,2]
[353116208,1739566253193,-500.0,0.00013698,2]
[353116209,1739566253203,-1805.89,0.00013698,2]
[353116210,1739566253212,-500.0,0.00013698,2]
[353116211,1739566253222,-500.0,0.00013698,2]
[353116212,1739566253233,-2219.87,0.00013698,2]
[353116213,1739566253242,-1235.55,0.00013698,2]
[353116214,1739566253253,-604.24,0.00013698,2]
[353116215,1739566253262,-500.0,0.00013698,2]
[353116216,1739566253272,-500.0,0.00013698,2]
[353116217,1739566253283,-1082.39,0.00013698,2]
[353116218,1739566253292,-2116.85,0.00013698,2]
[353116219,1739566253302,-500.0,0.00013698,2]
[353116220,1739566253312,-500.0,0.00013698,2]
[353116221,1739566253322,-500.0,0.00013698,2]
[353116222,1739566253331,-500.0,0.00013698,2]
[353116223,1739566253341,-661.33,0.00013698,2]
[353116224,1739566253352,-2112.18,0.00013698,2]
[353116225,1739566253361,-500.0,0.00013698,2]
[353116226,1739566253371,-500.0,0.00013698,2]
[353116227,1739566253380,-500.0,0.00013698,2]
[353116228,1739566253389,-1558.85,0.00013698,2]
[353116229,1739566253398,-500.0,0.00013698,2]
[353116230,1739566253407,-1872.0,0.00013698,2]
[353116231,1739566253417,-1157.73,0.00013698,2]
[353116232,1739566253427,-500.0,0.00013698,2]
[353116233,1739566253436,-328.65750519,0.00013698,2]
[353116234,1739566253445,-699.76,0.00013698,2]
[353116235,1739566253455,-500.0,0.00013698,2]
[353116236,1739566253464,-500.0,0.00013698,2]
[353116237,1739566253473,-2970.66,0.00013698,2]
[353116238,1739566253571,-500.0,0.00013698,2]
[353116239,1739566253581,-500.0,0.00013698,2]
[353116240,1739566253591,-500.0,0.00013698,2]
[353116241,1739566253601,-500.0,0.00013698,2]
[353116242,1739566253610,-500.0,0.00013698,2]
[353116243,1739566253619,-508.25,0.00013698,2]
[353116244,1739566253629,-352.73537129,0.00013698,2]
[353116245,1739566253638,-500.0,0.00013698,2]
[353116246,1739566253647,-500.0,0.00013698,2]
[353116247,1739566253656,-500.0,0.00013698,2]
[353116248,1739566253665,-500.0,0.00013698,2]
[353116249,1739566253674,-586.78,0.00013698,2]
[353116250,1739566253684,-500.0,0.00013698,2]
[353116251,1739566253695,-929.92,0.00013698,2]
[353116252,1739566253705,-500.0,0.00013698,2]
[353116253,1739566253714,-635.89,0.00013698,2]
[353116254,1739566253725,-500.0,0.00013698,2]
[353116255,1739566253734,-500.0,0.00013698,2]
[353116256,1739566253744,-2913.77,0.00013698,2]
[353116257,1739566253753,-500.0,0.00013698,2]
[353116258,1739566253763,-500.0,0.00013698,2]
[353116259,1739566253772,-307.4965961,0.00013698,2]
[353116260,1739566253784,-500.0,0.00013698,2]
[353116261,1739566253794,-500.0,0.00013698,2]
[353116262,1739566253804,-505.07918474,0.00013698,2]
[353116263,1739566253813,-4186.79,0.00013698,2]
[353116264,1739566253823,-500.0,0.00013698,2]
[353116265,1739566253832,-500.0,0.00013698,2]
[353116266,1739566253842,-503.80749561,0.00013698,2]
[353116267,1739566253851,-902.65,0.00013698,2]
[353116268,1739566253862,-500.0,0.00013698,2]
[353116269,1739566253871,-500.0,0.00013698,2]
[353116270,1739566253881,-1399.17,0.00013698,2]
[353116271,1739566253890,-500.0,0.00013698,2]
[353116272,1739566253900,-2196.62,0.00013698,2]
[353116273,1739566253910,-596.5552071,0.00013698,2]
[353116274,1739566253919,-500.0,0.00013698,2]
[353116275,1739566253928,-500.0,0.00013698,2]
[353116276,1739566253938,-500.0,0.00013698,2]
[353116277,1739566253947,-500.42338837,0.00013698,2]
[353116278,1739566253956,-2628.96,0.00013698,2]
[353116279,1739566253966,-500.0,0.00013698,2]
[353116280,1739566253975,-1158.56,0.00013698,2]
[353116281,1739566253984,-500.0,0.00013698,2]
[353116282,1739566253994,-1928.84,0.00013698,2]
[353116283,1739566254003,-500.0,0.00013698,2]
[353116284,1739566254012,-500.0,0.00013698,2]
[353116285,1739566254021,-1479.96,0.00013698,2]
[353116286,1739566254033,-1153.76,0.00013698,2]
[353116287,1739566254044,-500.0,0.00013698,2]
[353116288,1739566254054,-739.42,0.00013698,2]
[353116289,1739566254064,-500.0,0.00013698,2]
[353116290,1739566254073,-1028.48,0.00013698,2]
[353116291,1739566254083,-504.17738707,0.00013698,2]
[353116292,1739566254093,-1597.62,0.00013698,2]
[353116293,1739566254102,-500.0,0.00013698,2]
[353116294,1739566254112,-1906.43,0.00013698,2]
[353116295,1739566254121,-6128.58,0.00013698,2]
[353116296,1739566254131,-6128.58,0.00013698,2]
[353116297,1739566254140,-6128.58,0.00013698,2]
[353116298,1739566254150,-6128.58,0.00013698,2]
[353116299,1739566254159,-6128.58,0.00013698,2]
[353116300,1739566254168,-503.04461501,0.00013698,2]
[353116301,1739566254179,-6128.58,0.00013698,2]
[353116302,1739566254191,-6128.58,0.00013698,2]
[353116303,1739566254201,-6128.58,0.00013698,2]
[353116304,1739566254210,-6128.58,0.00013698,2]
[353116305,1739566254220,-500.0,0.00013698,2]
[353116306,1739566254229,-502.81832169,0.00013698,2]
[353116307,1739566254238,-3241.0,0.00013698,2]
[353116308,1739566254248,-816.33,0.00013698,2]
[353116309,1739566254258,-500.0,0.00013698,2]
[353116310,1739566254268,-504.71485391,0.00013698,2]
[353116311,1739566254279,-500.0,0.00013698,2]
[353116312,1739566254291,-849.22,0.00013698,2]
[353116313,1739566254300,-500.0,0.00013698,2]
[353116314,1739566254309,-1191.81,0.00013698,2]
[353116315,1739566254319,-1332.32,0.00013698,2]
[353116316,1739566254328,-939.58,0.00013698,2]
[353116317,1739566254337,-527.13,0.00013698,2]
[353116318,1739566254346,-500.0,0.00013698,2]
[353116319,1739566254355,-500.0,0.00013698,2]
[353116320,1739566254364,-500.0,0.00013698,2]
[353116321,1739566254373,-1257.55,0.00013698,2]
[353116322,1739566254382,-2807.42,0.00013698,2]
[353116323,1739566254391,-500.0,0.00013698,2]
[353116324,1739566254400,-1704.06,0.00013698,2]
[353116325,1739566254409,-500.0,0.00013698,2]
[353116326,1739566254419,-500.0,0.00013698,2]
[353116327,1739566254428,-2998.46,0.00013698,2]
[353116328,1739566254438,-556.02,0.00013698,2]
[353116329,1739566254447,-500.0,0.00013698,2]
[353116330,1739566254457,-500.0,0.00013698,2]
[353116331,1739566254466,-500.0,0.00013698,2]
[353116332,1739566254475,-2289.6,0.00013698,2]
[353116333,1739566254484,-712.61,0.00013698,2]
[353116334,1739566254494,-1979.01,0.00013698,2]